Workbook

Sheet ID (hidden)
EX1: =IF(INDEX(Ringkasan!C:C,0,1)=0,"-",INDEX(Ringkasan!C:C,0,1)) -> -
AY2: =IF(AND(Reg!D6=REG,Menu!E6="PT. BENGKOANG",Menu!E9>2014,Menu!E9<2020,MIN('Tabel Penyusutan'!I7:I55)>2014,MAX('Tabel Penyusutan'!I7:I55)<2020),Menu!E6,"#") -> PT. BENGKOANG | CX2: Bulan | CY2: Index | EX2: =IF(INDEX(Ringkasan!C:C,0,1)=0,"-",INDEX(Ringkasan!C:C,0,1)) -> -
AY3: =IF(No=O_,Nm,"#") -> PT. BENGKOANG | CX3: Januari | CY3: 1 | EX3: =IF(INDEX(Ringkasan!C:C,0,1)=0,"-",INDEX(Ringkasan!C:C,0,1)) -> -
CX4: Februari | CY4: 2 | EX4: =IF(INDEX(Ringkasan!C:C,0,1)=0,"-",INDEX(Ringkasan!C:C,0,1)) -> -
AY5: =IF(AND(Reg!D6=REG,Menu!E6="PT. BENGKOANG",Menu!E9>2014,Menu!E9<2020,MIN('Tabel Penyusutan'!I7:I55)>2014,MAX('Tabel Penyusutan'!I7:I55)<2020),HD!XY2000+HD!XY3000+HD!XY4000+O_,"#") -> 0 | CX5: Maret | CY5: 3 | EX5: =IF(INDEX(Ringkasan!C:C,0,1)=0,"-",INDEX(Ringkasan!C:C,0,1)) -> -
AY6: =IF(AND(Reg!D6=REG,Menu!E6="PT. BENGKOANG",Menu!E9>2014,Menu!E9<2020,MIN('Tabel Penyusutan'!I7:I55)>2014,MAX('Tabel Penyusutan'!I7:I55)<2020),HD!XY2000+HD!XY3000+HD!XY4000+O_,"#") -> 0 | CX6: April | CY6: 4 | EX6: =IF(INDEX(Ringkasan!C:C,0,1)=0,"-",INDEX(Ringkasan!C:C,0,1)) -> Kelompok Aset Tetap
CX7: Mei | CY7: 5 | EX7: =IF(INDEX(Ringkasan!C:C,0,1)=0,"-",INDEX(Ringkasan!C:C,0,1)) -> -
CX8: Juni | CY8: 6 | EX8: =IF(INDEX(Ringkasan!C:C,0,1)=0,"-",INDEX(Ringkasan!C:C,0,1)) -> Tanah
CX9: Juli | CY9: 7 | EX9: =IF(INDEX(Ringkasan!C:C,0,1)=0,"-",INDEX(Ringkasan!C:C,0,1)) -> Bangunan
CX10: Agustus | CY10: 8 | EX10: =IF(INDEX(Ringkasan!C:C,0,1)=0,"-",INDEX(Ringkasan!C:C,0,1)) -> Mesin
CX11: September | CY11: 9 | EX11: =IF(INDEX(Ringkasan!C:C,0,1)=0,"-",INDEX(Ringkasan!C:C,0,1)) -> Kendaraan
CX12: Oktober | CY12: 10 | EX12: =IF(INDEX(Ringkasan!C:C,0,1)=0,"-",INDEX(Ringkasan!C:C,0,1)) -> Peralatan Kantor
CX13: November | CY13: 11 | EX13: =IF(INDEX(Ringkasan!C:C,0,1)=0,"-",INDEX(Ringkasan!C:C,0,1)) -> -
CX14: Desember | CY14: 12 | EX14: =IF(INDEX(Ringkasan!C:C,0,1)=0,"-",INDEX(Ringkasan!C:C,0,1)) -> -
EX15: =IF(INDEX(Ringkasan!C:C,0,1)=0,"-",INDEX(Ringkasan!C:C,0,1)) -> -
EX16: =IF(INDEX(Ringkasan!C:C,0,1)=0,"-",INDEX(Ringkasan!C:C,0,1)) -> -
EX17: =IF(INDEX(Ringkasan!C:C,0,1)=0,"-",INDEX(Ringkasan!C:C,0,1)) -> -
EX18: =IF(INDEX(Ringkasan!C:C,0,1)=0,"-",INDEX(Ringkasan!C:C,0,1)) -> -
EX19: =IF(INDEX(Ringkasan!C:C,0,1)=0,"-",INDEX(Ringkasan!C:C,0,1)) -> -
EX20: =IF(INDEX(Ringkasan!C:C,0,1)=0,"-",INDEX(Ringkasan!C:C,0,1)) -> -
EX21: =IF(INDEX(Ringkasan!C:C,0,1)=0,"-",INDEX(Ringkasan!C:C,0,1)) -> -
EX22: =IF(INDEX(Ringkasan!C:C,0,1)=0,"-",INDEX(Ringkasan!C:C,0,1)) -> -
EX23: =IF(INDEX(Ringkasan!C:C,0,1)=0,"-",INDEX(Ringkasan!C:C,0,1)) -> -
EX24: =IF(INDEX(Ringkasan!C:C,0,1)=0,"-",INDEX(Ringkasan!C:C,0,1)) -> -
AY27: =HD!XY5000 -> info@xclmedia.com
AY48: =IF(Bn=O_,Menu!E9,"#") -> 2016
AY49: =Bl -> 2016
AY50: =IF(AND(Reg!D6=REG,Menu!E9>2014,Menu!E9<2020),HD!XY2000+HD!XY3000+HD!XY4000,"#") -> 0
AY51: =IF(AND(Reg!D6=REG,Menu!E9>2014,Menu!E9<2020),HD!XY2000+HD!XY3000+HD!XY4000+O_,"#") -> 0
AY72: =IF(Bn=O_,Menu!E8,"#") -> November
AY73: =IF(Bn=O_,Menu!E9,"#") -> 2016
AY94: =IF(Bn=O_,IF(AND(Bln=0,Thn=0),"Bulan : .............................",IF(AND(Bln<>0,Thn=0),"Bulan : "&Bln&" ..........",IF(AND(Bln=0,Thn<>0),"Bulan : ................... "&Thn,IF(AND(Bln<>0,Thn<>0),"Bulan : "&Bln&" "&Thn,"Bulan : ..................................")))),"#") -> Bulan : November 2016
AY115: =IF(Bn=O_,IF(Nm<>0,Nm,"Nama Perusahaan"),"#") -> PT. BENGKOANG
AY136: =IF(Bn=O_,IF(AND(Bln<>0,Thn=0),LEFT(Bln,3)&" ……..",IF(AND(Bln=0,Thn<>0),"…….. "&Thn,IF(AND(Bln<>0,Thn<>0),LEFT(Bln,3)&"-"&Thn,"……………"))),"#") -> Nov-2016
AY157: =IF(Bn=O_,IF(Thn<>0,"s.d. Tahun "&Thn-1,"s.d. Tahun ……."),"#") -> s.d. Tahun 2015
AY178: =IF(Bn=O_,IF(Thn<>0,"Tahun "&Thn,"Tahun ……."),"#") -> Tahun 2016
AY199: =IF(Bn=O_,"-","#") -> -
AY220: =COUNTBLANK(CX16:CY16) -> 2
AY241: =IF(Bn=O_,12,"#") -> 12
AY262: =IF(Bn=O_," Bulan","#") -> Bulan
AY283: =IF(Bn=O_," Tahun","#") -> Tahun
AY304: Habis
AY325: =IF(Bn=O_," - ","#") -> -
AY346: =IF(ML_=HD!XY1000,0,"#") -> 0
AY500: =LEFT(RIGHT(REG,LEN(REG)-3),5) -> o@xcl

Sheet Reg
C6: USER | D6: info@xclmedia.com

Sheet Menu
C6: Perusahaan | D6: : | E6: PT. BENGKOANG
C7: Penyusutan
C8: Bulan | D8: : | E8: November
C9: Tahun | D9: : | E9: 2016
A11: =IF(REG=Reg!D6,"Reg: "&REG&" - @copyright: xclmedia.com","Reg: Error - @copyright: xclmedia.com") -> Reg: info@xclmedia.com - @copyright: xclmedia.com

Sheet Ringkasan
B2: =Perusahaan -> PT. BENGKOANG
B3: RINGKASAN DAFTAR PENYUSUTAN
B4: =Tanggal -> Bulan : November 2016
B6: No | C6: Kelompok Aset Tetap | E6: Harga Perolehan | F6: Penyusutan | G6: Penyusutan | H6: Penyusutan | I6: Total Penyusutan | J6: Nilai Buku
F7: =Bl.. -> Nov-2016 | G7: =Th. -> s.d. Tahun 2015 | H7: =Th.. -> Tahun 2016
B8: =IF(C8=No,Min,COUNTA(C$8:C8)) -> 1 | C8: Tanah | E8: =SUMIF(Klom1,IF(No=Np,C8,Bn),Klom2) -> 325000000 | F8: =SUMIF(Klom1,IF(Bn=Bo,C8,No),Klom3) -> 0 | G8: =SUMIF(Klom1,IF(No=Bo,C8,Bn),Klom4) -> 0 | H8: =SUMIF(Klom1,IF(No=Bo,C8,Bn),Klom5) -> 0 | I8: =G8+H8 -> 0 | J8: =E8-I8 -> 325000000
B9: =IF(C9=No,Min,COUNTA(C$8:C9)) -> 2 | C9: Bangunan | E9: 525000000 | F9: 2187500 | G9: 24687500 | H9: 24062500 | I9: =G9+H9 -> 48750000 | J9: =E9-I9 -> 476250000
B10: =IF(C10=No,Min,COUNTA(C$8:C10)) -> 3 | C10: Mesin | E10: 4470000000 | F10: 23645833.33 | G10: 233125000 | H10: 260104166.7 | I10: 493229166.7 | J10: 3976770833
B11: =IF(C11=No,Min,COUNTA(C$8:C11)) -> 4 | C11: Kendaraan | E11: 285500000 | F11: 2973958.333 | G11: 29239583.33 | H11: 32713541.67 | I11: 61953125 | J11: 223546875
B12: =IF(C12=No,Min,COUNTA(C$8:C12)) -> 5 | C12: Peralatan Kantor | E12: 66050000 | F12: 1376041.667 | G12: 16053125 | H12: 15136458.33 | I12: 31189583.33 | J12: 34860416.67
B13: =IF(C13=No,Min,COUNTA(C$8:C13)) -> - | E13: 0 | F13: 0 | G13: 0 | H13: 0 | I13: 0 | J13: 0
B14: =IF(C14=No,Min,COUNTA(C$8:C14)) -> - | E14: 0 | F14: 0 | G14: 0 | H14: 0 | I14: 0 | J14: 0
B15: =IF(C15=No,Min,COUNTA(C$8:C15)) -> - | E15: 0 | F15: 0 | G15: 0 | H15: 0 | I15: 0 | J15: 0
B16: =IF(C16=No,Min,COUNTA(C$8:C16)) -> - | E16: 0 | F16: 0 | G16: 0 | H16: 0 | I16: 0 | J16: 0
B17: =IF(C17=No,Min,COUNTA(C$8:C17)) -> - | E17: 0 | F17: 0 | G17: 0 | H17: 0 | I17: 0 | J17: 0
B18: =IF(C18=No,Min,COUNTA(C$8:C18)) -> - | E18: 0 | F18: 0 | G18: 0 | H18: 0 | I18: 0 | J18: 0
B19: =IF(C19=No,Min,COUNTA(C$8:C19)) -> - | E19: 0 | F19: 0 | G19: 0 | H19: 0 | I19: 0 | J19: 0
B20: =IF(C20=No,Min,COUNTA(C$8:C20)) -> - | E20: 0 | F20: 0 | G20: 0 | H20: 0 | I20: 0 | J20: 0
B21: =IF(C21=No,Min,COUNTA(C$8:C21)) -> - | E21: =SUM(E8:E20) -> 5671550000 | F21: =SUM(F8:F20) -> 30183333.33 | G21: 303105208.3 | H21: 332016666.7 | I21: 635121875 | J21: 5036428125

Sheet Tabel Penyusutan
B1: =Perusahaan -> PT. BENGKOANG
B2: DAFTAR PENYUSUTAN AKTIVA TETAP
B3: =Tanggal -> Bulan : November 2016
E4: Tanggal | J4: Nilai | N4: Umur | O4: Persentase | P4: Penyusutan | Q4: Penyusutan | R4: Akum. Peny. | T4: Penyusutan | V4: Total | X4: Keterangan Sisa
B5: No | C5: Keterangan | D5: Kelompok | E5: Tgl | F5: Bulan | G5: Tahun | H5: Mulai | I5: Tahun | J5: Unit | K5: Harga | L5: Jumlah | M5: Nilai Sisa | N5: Ekonomis | O5: Penyusutan | P5: Per Bulan | Q5: =Bl.. -> Nov-2016 | R5: =Th. -> s.d. Tahun 2015 | T5: =Th.. -> Tahun 2016 | V5: Akumulasi | W5: Nilai Buku | X5: Bulan / Tahun
F6: Perolehan | H6: Penyusutan | K6: Perolehan | N6: (Tahun) | O6: Per Tahun | R6: Bln | S6: Jumlah | T6: Bln | U6: Jumlah | V6: Penyusutan
L7: =IF(Nm<>Nn,No,IF(Bl<>Bm,Bn,IF(J7<>Bn,J7*K7+Np,K7+Bo))) -> 0 | O7: =IF(Nm<>Nn,Min,IF(Bl<>Bm,Min,IF(N7<>Bo,(1/N7)+Np,Min))) -> - | P7: =IF(Nm<>Nn,No,IF(OR(Bl<>Bm),Bn,IF(O7=Min,No,((L7-M7-Np-Bo)*(O7/12)+Np+Bo)))) -> 0 | Q7: =IF(AND(Nm=Nn,Bl=Bm),IF(H7<>Bn,IF(Bln<>Bo,IF(N7<>Bn,IF(AND(Thn=I7,VLOOKUP(Bln,ID,Scd,FALSE)>=VLOOKUP(H7,ID,Scd,FALSE)),P7,IF(AND(Thn>I7,(12-VLOOKUP(H7,ID,Scd,FALSE))+((Thn-I7)*12)-(12-VLOOKUP(Bln,ID,Scd,FALSE))<N7*12),P7,No)),Np),Bo),Bn),Bo) -> 0 | R7: =IF(AND(Nm=Nn,Bl=Bm),IF(H7<>Bn,IF((IF(13-VLOOKUP(H7,ID,Scd,FALSE)+(Thn-I7-1)*12<=N7*12,13-Bn-VLOOKUP(H7,ID,Scd,FALSE)+Bo+(Thn-I7-1)*12,IF(AND(13-VLOOKUP(H7,ID,Scd,FALSE)+(Thn-I7-1)*12>N7*12),N7*12,Np)))<Bo,Bn,(IF(13-VLOOKUP(H7,ID,Scd,FALSE)+(Thn-I7-1)*12<=N7*12,13-VLOOKUP(H7,ID,Scd,FALSE)+(Thn-I7-1)*12,IF(13-VLOOKUP(H7,ID,Scd,FALSE)+(Thn-I7-1)*12>N7*12,N7*12,No)))),Np),Bn+Bo) -> 0 | S7: =IF(P7=Min,No,P7*R7) -> 0 | T7: =IF(ISNA(VLOOKUP(H7,ID,Scd,FALSE))=TRUE,No,IF(IF(N7*12=R7,Bn,IF(AND(N7*12-R7<VLOOKUP(H7,ID,Scd,FALSE),VLOOKUP(H7,ID,Scd,FALSE)<=VLOOKUP(Bln,ID,Scd,FALSE)),VLOOKUP(H7,ID,Scd,FALSE)-1,IF(AND(N7*12-R7<VLOOKUP(H7,ID,Scd,FALSE),VLOOKUP(H7,ID,Scd,FALSE)>VLOOKUP(Bln,ID,Scd,FALSE)),VLOOKUP(Bln,ID,Scd,FALSE),IF(AND(R7=Bo,I7<Thn),VLOOKUP(Bln,ID,Scd,FALSE)-1,IF(AND(R7=Bn,I7=Thn),VLOOKUP(Bln,ID,Scd,FALSE)-VLOOKUP(H7,ID,Scd,FALSE)+1,VLOOKUP(Bln,ID,Scd,FALSE))))))<Bo,Np+Bo,IF(OR(Thn<I7,H7=Bn,Bln=Bo,Nm<>Nn,Bl<>Bm),No+Bn,IF(N7*12=R7,Bn,IF(AND(N7*12-R7<VLOOKUP(H7,ID,Scd,FALSE),VLOOKUP(H7,ID,Scd,FALSE)<=VLOOKUP(Bln,ID,Scd,FALSE)),VLOOKUP(H7,ID,Scd,FALSE)-1,IF(AND(N7*12-R7<VLOOKUP(H7,ID,Scd,FALSE),VLOOKUP(H7,ID,Scd,FALSE)>VLOOKUP(Bln,ID,Scd,FALSE)),VLOOKUP(Bln,ID,Scd,FALSE),IF(AND(R7=Bo,I7<Thn),VLOOKUP(Bln,ID,Scd,FALSE)-1,IF(AND(R7=Bn,I7=Thn),VLOOKUP(Bln,ID,Scd,FALSE)-VLOOKUP(H7,ID,Scd,FALSE)+1,VLOOKUP(Bln,ID,Scd,FALSE))))))))) -> 0 | U7: =P7*T7 -> 0 | V7: =S7+U7 -> 0 | W7: =L7-V7 -> 0 | X7: =IF(AND(Nm=Nn,Bl=Bm,N7=Bn),Min,IF((N7*Month)-R7-T7=Bo+Bn,Habis,IF(AND(((N7*Month)-R7-T7)>Month,R7=0),ROUNDDOWN(((N7*Month)-R7-T7)/Month,No)&Tahun&Min_&((N7*Month)-R7-T7)-(ROUNDDOWN(((N7*Month)-R7-T7)/Month,Np)*Month)&Bulan,IF(((N7*Month)-R7-T7)>Month,ROUNDDOWN(((N7*Month)-R7-T7)/Month,No)&Tahun&Min_&((N7*Month)-R7-T7)-(ROUNDDOWN(((N7*Month)-R7-T7)/Month,Np)*Month)&Bulan,(N7*Month)-R7-T7&Bulan)))) -> -
B8: =IF(C8=No,Min,COUNTA(C$8:C8)) -> 1 | C8: Tanah Kantor | D8: Tanah | E8: 1900-01-10 | F8: Januari | G8: 2015 | H8: Januari | I8: 2015 | K8: 75000000 | L8: 75000000 | N8: 0 | O8: =IF(Nm<>Nn,Min,IF(Bl<>Bm,Min,IF(N8<>Bo,(1/N8)+Np,Min))) -> - | P8: =IF(Nm<>Nn,No,IF(OR(Bl<>Bm),Bn,IF(O8=Min,No,((L8-M8-Np-Bo)*(O8/12)+Np+Bo)))) -> 0 | Q8: =IF(AND(Nm=Nn,Bl=Bm),IF(H8<>Bn,IF(Bln<>Bo,IF(N8<>Bn,IF(AND(Thn=I8,VLOOKUP(Bln,ID,Scd,FALSE)>=VLOOKUP(H8,ID,Scd,FALSE)),P8,IF(AND(Thn>I8,(12-VLOOKUP(H8,ID,Scd,FALSE))+((Thn-I8)*12)-(12-VLOOKUP(Bln,ID,Scd,FALSE))<N8*12),P8,No)),Np),Bo),Bn),Bo) -> 0 | R8: =IF(AND(Nm=Nn,Bl=Bm),IF(H8<>Bn,IF((IF(13-VLOOKUP(H8,ID,Scd,FALSE)+(Thn-I8-1)*12<=N8*12,13-Bn-VLOOKUP(H8,ID,Scd,FALSE)+Bo+(Thn-I8-1)*12,IF(AND(13-VLOOKUP(H8,ID,Scd,FALSE)+(Thn-I8-1)*12>N8*12),N8*12,Np)))<Bo,Bn,(IF(13-VLOOKUP(H8,ID,Scd,FALSE)+(Thn-I8-1)*12<=N8*12,13-VLOOKUP(H8,ID,Scd,FALSE)+(Thn-I8-1)*12,IF(13-VLOOKUP(H8,ID,Scd,FALSE)+(Thn-I8-1)*12>N8*12,N8*12,No)))),Np),Bn+Bo) -> 0 | S8: =IF(P8=Min,No,P8*R8) -> 0 | T8: =IF(ISNA(VLOOKUP(H8,ID,Scd,FALSE))=TRUE,No,IF(IF(N8*12=R8,Bn,IF(AND(N8*12-R8<VLOOKUP(H8,ID,Scd,FALSE),VLOOKUP(H8,ID,Scd,FALSE)<=VLOOKUP(Bln,ID,Scd,FALSE)),VLOOKUP(H8,ID,Scd,FALSE)-1,IF(AND(N8*12-R8<VLOOKUP(H8,ID,Scd,FALSE),VLOOKUP(H8,ID,Scd,FALSE)>VLOOKUP(Bln,ID,Scd,FALSE)),VLOOKUP(Bln,ID,Scd,FALSE),IF(AND(R8=Bo,I8<Thn),VLOOKUP(Bln,ID,Scd,FALSE)-1,IF(AND(R8=Bn,I8=Thn),VLOOKUP(Bln,ID,Scd,FALSE)-VLOOKUP(H8,ID,Scd,FALSE)+1,VLOOKUP(Bln,ID,Scd,FALSE))))))<Bo,Np+Bo,IF(OR(Thn<I8,H8=Bn,Bln=Bo,Nm<>Nn,Bl<>Bm),No+Bn,IF(N8*12=R8,Bn,IF(AND(N8*12-R8<VLOOKUP(H8,ID,Scd,FALSE),VLOOKUP(H8,ID,Scd,FALSE)<=VLOOKUP(Bln,ID,Scd,FALSE)),VLOOKUP(H8,ID,Scd,FALSE)-1,IF(AND(N8*12-R8<VLOOKUP(H8,ID,Scd,FALSE),VLOOKUP(H8,ID,Scd,FALSE)>VLOOKUP(Bln,ID,Scd,FALSE)),VLOOKUP(Bln,ID,Scd,FALSE),IF(AND(R8=Bo,I8<Thn),VLOOKUP(Bln,ID,Scd,FALSE)-1,IF(AND(R8=Bn,I8=Thn),VLOOKUP(Bln,ID,Scd,FALSE)-VLOOKUP(H8,ID,Scd,FALSE)+1,VLOOKUP(Bln,ID,Scd,FALSE))))))))) -> 0 | U8: =P8*T8 -> 0 | V8: =S8+U8 -> 0 | W8: =L8-V8 -> 75000000 | X8: -
B9: =IF(C9=No,Min,COUNTA(C$8:C9)) -> 2 | C9: Tanah Gudang I | D9: Tanah | E9: 1900-01-15 | F9: Februari | G9: 2015 | H9: Februari | I9: 2015 | K9: 150000000 | L9: 150000000 | N9: 0 | O9: - | P9: 0 | Q9: 0 | R9: 0 | S9: 0 | T9: 0 | U9: 0 | V9: 0 | W9: 150000000 | X9: -
B10: =IF(C10=No,Min,COUNTA(C$8:C10)) -> 3 | C10: Tanah Gudang II | D10: Tanah | E10: 1900-01-20 | F10: Februari | G10: 2015 | H10: Februari | I10: 2015 | K10: 100000000 | L10: 100000000 | N10: 0 | O10: - | P10: 0 | Q10: 0 | R10: 0 | S10: 0 | T10: 0 | U10: 0 | V10: 0 | W10: 100000000 | X10: -
B11: =IF(C11=No,Min,COUNTA(C$8:C11)) -> - | L11: 0 | O11: - | P11: 0 | Q11: 0 | R11: 0 | S11: 0 | T11: 0 | U11: 0 | V11: 0 | W11: 0 | X11: -
B12: =IF(C12=No,Min,COUNTA(C$8:C12)) -> - | L12: 0 | O12: - | P12: 0 | Q12: 0 | R12: 0 | S12: 0 | T12: 0 | U12: 0 | V12: 0 | W12: 0 | X12: -
B13: =IF(C13=No,Min,COUNTA(C$8:C13)) -> - | L13: 0 | O13: - | P13: 0 | Q13: 0 | R13: 0 | S13: 0 | T13: 0 | U13: 0 | V13: 0 | W13: 0 | X13: -
C14: Sub Total | K14: =SUM(K8:K13) -> 325000000 | L14: =SUM(L8:L13) -> 325000000 | P14: =SUM(P8:P13) -> 0 | Q14: =SUM(Q8:Q13) -> 0 | S14: =SUM(S8:S13) -> 0 | U14: =SUM(U8:U13) -> 0 | V14: =SUM(V8:V13) -> 0 | W14: =SUM(W8:W13) -> 325000000 | X14: -
L15: =IF(Nm<>Nn,No,IF(Bl<>Bm,Bn,IF(J15<>Bn,J15*K15+Np,K15+Bo))) -> 0 | O15: =IF(Nm<>Nn,Min,IF(Bl<>Bm,Min,IF(N15<>Bo,(1/N15)+Np,Min))) -> - | P15: =IF(Nm<>Nn,No,IF(OR(Bl<>Bm),Bn,IF(O15=Min,No,((L15-M15-Np-Bo)*(O15/12)+Np+Bo)))) -> 0 | Q15: =IF(AND(Nm=Nn,Bl=Bm),IF(H15<>Bn,IF(Bln<>Bo,IF(N15<>Bn,IF(AND(Thn=I15,VLOOKUP(Bln,ID,Scd,FALSE)>=VLOOKUP(H15,ID,Scd,FALSE)),P15,IF(AND(Thn>I15,(12-VLOOKUP(H15,ID,Scd,FALSE))+((Thn-I15)*12)-(12-VLOOKUP(Bln,ID,Scd,FALSE))<N15*12),P15,No)),Np),Bo),Bn),Bo) -> 0 | R15: =IF(AND(Nm=Nn,Bl=Bm),IF(H15<>Bn,IF((IF(13-VLOOKUP(H15,ID,Scd,FALSE)+(Thn-I15-1)*12<=N15*12,13-Bn-VLOOKUP(H15,ID,Scd,FALSE)+Bo+(Thn-I15-1)*12,IF(AND(13-VLOOKUP(H15,ID,Scd,FALSE)+(Thn-I15-1)*12>N15*12),N15*12,Np)))<Bo,Bn,(IF(13-VLOOKUP(H15,ID,Scd,FALSE)+(Thn-I15-1)*12<=N15*12,13-VLOOKUP(H15,ID,Scd,FALSE)+(Thn-I15-1)*12,IF(13-VLOOKUP(H15,ID,Scd,FALSE)+(Thn-I15-1)*12>N15*12,N15*12,No)))),Np),Bn+Bo) -> 0 | S15: =IF(P15=Min,No,P15*R15) -> 0 | T15: =IF(ISNA(VLOOKUP(H15,ID,Scd,FALSE))=TRUE,No,IF(IF(N15*12=R15,Bn,IF(AND(N15*12-R15<VLOOKUP(H15,ID,Scd,FALSE),VLOOKUP(H15,ID,Scd,FALSE)<=VLOOKUP(Bln,ID,Scd,FALSE)),VLOOKUP(H15,ID,Scd,FALSE)-1,IF(AND(N15*12-R15<VLOOKUP(H15,ID,Scd,FALSE),VLOOKUP(H15,ID,Scd,FALSE)>VLOOKUP(Bln,ID,Scd,FALSE)),VLOOKUP(Bln,ID,Scd,FALSE),IF(AND(R15=Bo,I15<Thn),VLOOKUP(Bln,ID,Scd,FALSE)-1,IF(AND(R15=Bn,I15=Thn),VLOOKUP(Bln,ID,Scd,FALSE)-VLOOKUP(H15,ID,Scd,FALSE)+1,VLOOKUP(Bln,ID,Scd,FALSE))))))<Bo,Np+Bo,IF(OR(Thn<I15,H15=Bn,Bln=Bo,Nm<>Nn,Bl<>Bm),No+Bn,IF(N15*12=R15,Bn,IF(AND(N15*12-R15<VLOOKUP(H15,ID,Scd,FALSE),VLOOKUP(H15,ID,Scd,FALSE)<=VLOOKUP(Bln,ID,Scd,FALSE)),VLOOKUP(H15,ID,Scd,FALSE)-1,IF(AND(N15*12-R15<VLOOKUP(H15,ID,Scd,FALSE),VLOOKUP(H15,ID,Scd,FALSE)>VLOOKUP(Bln,ID,Scd,FALSE)),VLOOKUP(Bln,ID,Scd,FALSE),IF(AND(R15=Bo,I15<Thn),VLOOKUP(Bln,ID,Scd,FALSE)-1,IF(AND(R15=Bn,I15=Thn),VLOOKUP(Bln,ID,Scd,FALSE)-VLOOKUP(H15,ID,Scd,FALSE)+1,VLOOKUP(Bln,ID,Scd,FALSE))))))))) -> 0 | U15: =P15*T15 -> 0 | V15: =S15+U15 -> 0 | W15: =L15-V15 -> 0 | X15: -
B16: =IF(C16=No,Min,COUNTA(C$16:C16)) -> 1 | C16: Bangunan Kantor | D16: Bangunan | E16: 1900-01-10 | F16: Januari | G16: 2015 | H16: Januari | I16: 2015 | K16: 150000000 | L16: 150000000 | N16: 20 | O16: 0.05 | P16: 625000 | Q16: 625000 | R16: 12 | S16: 7500000 | T16: 11 | U16: 6875000 | V16: 14375000 | W16: 135625000 | X16: 18 Tahun - 1 Bulan
B17: =IF(C17=No,Min,COUNTA(C$16:C17)) -> 2 | C17: Bangunan Gudang I | D17: Bangunan | E17: 1900-01-15 | F17: Februari | G17: 2015 | H17: Februari | I17: 2015 | K17: 200000000 | L17: 200000000 | N17: 20 | O17: 0.05 | P17: 833333.3333 | Q17: 833333.3333 | R17: 11 | S17: 9166666.667 | T17: 11 | U17: 9166666.667 | V17: 18333333.33 | W17: 181666666.7 | X17: 18 Tahun - 2 Bulan
B18: =IF(C18=No,Min,COUNTA(C$16:C18)) -> 3 | C18: Bangunan Gudang II | D18: Bangunan | E18: 1900-01-20 | F18: Februari | G18: 2015 | H18: Februari | I18: 2015 | K18: 175000000 | L18: 175000000 | N18: 20 | O18: 0.05 | P18: 729166.6667 | Q18: 729166.6667 | R18: 11 | S18: 8020833.333 | T18: 11 | U18: 8020833.333 | V18: 16041666.67 | W18: 158958333.3 | X18: 18 Tahun - 2 Bulan
B19: =IF(C19=No,Min,COUNTA(C$16:C19)) -> - | L19: 0 | O19: - | P19: 0 | Q19: 0 | R19: 0 | S19: 0 | T19: 0 | U19: 0 | V19: 0 | W19: 0 | X19: -
B20: =IF(C20=No,Min,COUNTA(C$16:C20)) -> - | L20: 0 | O20: - | P20: 0 | Q20: 0 | R20: 0 | S20: 0 | T20: 0 | U20: 0 | V20: 0 | W20: 0 | X20: -
B21: =IF(C21=No,Min,COUNTA(C$16:C21)) -> - | L21: 0 | O21: - | P21: 0 | Q21: 0 | R21: 0 | S21: 0 | T21: 0 | U21: 0 | V21: 0 | W21: 0 | X21: -
C22: Sub Total | K22: =SUM(K16:K21) -> 525000000 | L22: =SUM(L16:L21) -> 525000000 | P22: =SUM(P16:P21) -> 2187500 | Q22: =SUM(Q16:Q21) -> 2187500 | S22: =SUM(S16:S21) -> 24687500 | U22: =SUM(U16:U21) -> 24062500 | V22: =SUM(V16:V21) -> 48750000 | W22: =SUM(W16:W21) -> 476250000 | X22: -
L23: =IF(Nm<>Nn,No,IF(Bl<>Bm,Bn,IF(J23<>Bn,J23*K23+Np,K23+Bo))) -> 0 | O23: =IF(Nm<>Nn,Min,IF(Bl<>Bm,Min,IF(N23<>Bo,(1/N23)+Np,Min))) -> - | P23: =IF(Nm<>Nn,No,IF(OR(Bl<>Bm),Bn,IF(O23=Min,No,((L23-M23-Np-Bo)*(O23/12)+Np+Bo)))) -> 0 | Q23: =IF(AND(Nm=Nn,Bl=Bm),IF(H23<>Bn,IF(Bln<>Bo,IF(N23<>Bn,IF(AND(Thn=I23,VLOOKUP(Bln,ID,Scd,FALSE)>=VLOOKUP(H23,ID,Scd,FALSE)),P23,IF(AND(Thn>I23,(12-VLOOKUP(H23,ID,Scd,FALSE))+((Thn-I23)*12)-(12-VLOOKUP(Bln,ID,Scd,FALSE))<N23*12),P23,No)),Np),Bo),Bn),Bo) -> 0 | R23: =IF(AND(Nm=Nn,Bl=Bm),IF(H23<>Bn,IF((IF(13-VLOOKUP(H23,ID,Scd,FALSE)+(Thn-I23-1)*12<=N23*12,13-Bn-VLOOKUP(H23,ID,Scd,FALSE)+Bo+(Thn-I23-1)*12,IF(AND(13-VLOOKUP(H23,ID,Scd,FALSE)+(Thn-I23-1)*12>N23*12),N23*12,Np)))<Bo,Bn,(IF(13-VLOOKUP(H23,ID,Scd,FALSE)+(Thn-I23-1)*12<=N23*12,13-VLOOKUP(H23,ID,Scd,FALSE)+(Thn-I23-1)*12,IF(13-VLOOKUP(H23,ID,Scd,FALSE)+(Thn-I23-1)*12>N23*12,N23*12,No)))),Np),Bn+Bo) -> 0 | S23: =IF(P23=Min,No,P23*R23) -> 0 | T23: =IF(ISNA(VLOOKUP(H23,ID,Scd,FALSE))=TRUE,No,IF(IF(N23*12=R23,Bn,IF(AND(N23*12-R23<VLOOKUP(H23,ID,Scd,FALSE),VLOOKUP(H23,ID,Scd,FALSE)<=VLOOKUP(Bln,ID,Scd,FALSE)),VLOOKUP(H23,ID,Scd,FALSE)-1,IF(AND(N23*12-R23<VLOOKUP(H23,ID,Scd,FALSE),VLOOKUP(H23,ID,Scd,FALSE)>VLOOKUP(Bln,ID,Scd,FALSE)),VLOOKUP(Bln,ID,Scd,FALSE),IF(AND(R23=Bo,I23<Thn),VLOOKUP(Bln,ID,Scd,FALSE)-1,IF(AND(R23=Bn,I23=Thn),VLOOKUP(Bln,ID,Scd,FALSE)-VLOOKUP(H23,ID,Scd,FALSE)+1,VLOOKUP(Bln,ID,Scd,FALSE))))))<Bo,Np+Bo,IF(OR(Thn<I23,H23=Bn,Bln=Bo,Nm<>Nn,Bl<>Bm),No+Bn,IF(N23*12=R23,Bn,IF(AND(N23*12-R23<VLOOKUP(H23,ID,Scd,FALSE),VLOOKUP(H23,ID,Scd,FALSE)<=VLOOKUP(Bln,ID,Scd,FALSE)),VLOOKUP(H23,ID,Scd,FALSE)-1,IF(AND(N23*12-R23<VLOOKUP(H23,ID,Scd,FALSE),VLOOKUP(H23,ID,Scd,FALSE)>VLOOKUP(Bln,ID,Scd,FALSE)),VLOOKUP(Bln,ID,Scd,FALSE),IF(AND(R23=Bo,I23<Thn),VLOOKUP(Bln,ID,Scd,FALSE)-1,IF(AND(R23=Bn,I23=Thn),VLOOKUP(Bln,ID,Scd,FALSE)-VLOOKUP(H23,ID,Scd,FALSE)+1,VLOOKUP(Bln,ID,Scd,FALSE))))))))) -> 0 | U23: =P23*T23 -> 0 | V23: =S23+U23 -> 0 | W23: =L23-V23 -> 0 | X23: -
B24: =IF(C24=No,Min,COUNTA(C$24:C24)) -> 1 | C24: Mesin Cetak Web | D24: Mesin | E24: 1900-01-25 | F24: Februari | G24: 2015 | H24: Maret | I24: 2015 | J24: 2 | K24: 1250000000 | L24: 2500000000 | N24: 16 | O24: 0.0625 | P24: 13020833.33 | Q24: 13020833.33 | R24: 10 | S24: 130208333.3 | T24: 11 | U24: 143229166.7 | V24: 273437500 | W24: 2226562500 | X24: 14 Tahun - 3 Bulan
B25: =IF(C25=No,Min,COUNTA(C$24:C25)) -> 2 | C25: Mesin Cetak Solna | D25: Mesin | E25: 1900-01-28 | F25: Februari | G25: 2015 | H25: Maret | I25: 2015 | J25: 4 | K25: 350000000 | L25: 1400000000 | N25: 16 | O25: 0.0625 | P25: 7291666.667 | Q25: 7291666.667 | R25: 10 | S25: 72916666.67 | T25: 11 | U25: 80208333.33 | V25: 153125000 | W25: 1246875000 | X25: 14 Tahun - 3 Bulan
B26: =IF(C26=No,Min,COUNTA(C$24:C26)) -> 3 | C26: Mesin Potong | D26: Mesin | E26: 1900-01-10 | F26: Maret | G26: 2015 | H26: April | I26: 2015 | J26: 2 | K26: 250000000 | L26: 500000000 | N26: 16 | O26: 0.0625 | P26: 2604166.667 | Q26: 2604166.667 | R26: 9 | S26: 23437500 | T26: 11 | U26: 28645833.33 | V26: 52083333.33 | W26: 447916666.7 | X26: 14 Tahun - 4 Bulan
B27: =IF(C27=No,Min,COUNTA(C$24:C27)) -> 4 | C27: Mesin Jilid | D27: Mesin | E27: 1900-01-10 | F27: Maret | G27: 2015 | H27: April | I27: 2015 | J27: 2 | K27: 20000000 | L27: 40000000 | N27: 8 | O27: 0.125 | P27: 416666.6667 | Q27: 416666.6667 | R27: 9 | S27: 3750000 | T27: 11 | U27: 4583333.333 | V27: 8333333.333 | W27: 31666666.67 | X27: 6 Tahun - 4 Bulan
B28: =IF(C28=No,Min,COUNTA(C$24:C28)) -> 5 | C28: Mesin Plate | D28: Mesin | E28: 1900-01-15 | F28: Maret | G28: 2015 | H28: April | I28: 2015 | J28: 2 | K28: 15000000 | L28: 30000000 | N28: 8 | O28: 0.125 | P28: 312500 | Q28: 312500 | R28: 9 | S28: 2812500 | T28: 11 | U28: 3437500 | V28: 6250000 | W28: 23750000 | X28: 6 Tahun - 4 Bulan
B29: =IF(C29=No,Min,COUNTA(C$24:C29)) -> - | L29: 0 | O29: - | P29: 0 | Q29: 0 | R29: 0 | S29: 0 | T29: 0 | U29: 0 | V29: 0 | W29: 0 | X29: -
B30: =IF(C30=No,Min,COUNTA(C$24:C30)) -> - | L30: 0 | O30: - | P30: 0 | Q30: 0 | R30: 0 | S30: 0 | T30: 0 | U30: 0 | V30: 0 | W30: 0 | X30: -
B31: =IF(C31=No,Min,COUNTA(C$24:C31)) -> - | L31: 0 | O31: - | P31: 0 | Q31: 0 | R31: 0 | S31: 0 | T31: 0 | U31: 0 | V31: 0 | W31: 0 | X31: -
C32: Sub Total | K32: =SUM(K24:K31) -> 1885000000 | L32: =SUM(L24:L31) -> 4470000000 | P32: =SUM(P24:P31) -> 23645833.33 | Q32: =SUM(Q24:Q31) -> 23645833.33 | S32: =SUM(S24:S31) -> 233125000 | U32: =SUM(U24:U31) -> 260104166.7 | V32: =SUM(V24:V31) -> 493229166.7 | W32: =SUM(W24:W31) -> 3976770833 | X32: -
L33: =IF(Nm<>Nn,No,IF(Bl<>Bm,Bn,IF(J33<>Bn,J33*K33+Np,K33+Bo))) -> 0 | O33: =IF(Nm<>Nn,Min,IF(Bl<>Bm,Min,IF(N33<>Bo,(1/N33)+Np,Min))) -> - | P33: =IF(Nm<>Nn,No,IF(OR(Bl<>Bm),Bn,IF(O33=Min,No,((L33-M33-Np-Bo)*(O33/12)+Np+Bo)))) -> 0 | Q33: =IF(AND(Nm=Nn,Bl=Bm),IF(H33<>Bn,IF(Bln<>Bo,IF(N33<>Bn,IF(AND(Thn=I33,VLOOKUP(Bln,ID,Scd,FALSE)>=VLOOKUP(H33,ID,Scd,FALSE)),P33,IF(AND(Thn>I33,(12-VLOOKUP(H33,ID,Scd,FALSE))+((Thn-I33)*12)-(12-VLOOKUP(Bln,ID,Scd,FALSE))<N33*12),P33,No)),Np),Bo),Bn),Bo) -> 0 | R33: =IF(AND(Nm=Nn,Bl=Bm),IF(H33<>Bn,IF((IF(13-VLOOKUP(H33,ID,Scd,FALSE)+(Thn-I33-1)*12<=N33*12,13-Bn-VLOOKUP(H33,ID,Scd,FALSE)+Bo+(Thn-I33-1)*12,IF(AND(13-VLOOKUP(H33,ID,Scd,FALSE)+(Thn-I33-1)*12>N33*12),N33*12,Np)))<Bo,Bn,(IF(13-VLOOKUP(H33,ID,Scd,FALSE)+(Thn-I33-1)*12<=N33*12,13-VLOOKUP(H33,ID,Scd,FALSE)+(Thn-I33-1)*12,IF(13-VLOOKUP(H33,ID,Scd,FALSE)+(Thn-I33-1)*12>N33*12,N33*12,No)))),Np),Bn+Bo) -> 0 | S33: =IF(P33=Min,No,P33*R33) -> 0 | T33: =IF(ISNA(VLOOKUP(H33,ID,Scd,FALSE))=TRUE,No,IF(IF(N33*12=R33,Bn,IF(AND(N33*12-R33<VLOOKUP(H33,ID,Scd,FALSE),VLOOKUP(H33,ID,Scd,FALSE)<=VLOOKUP(Bln,ID,Scd,FALSE)),VLOOKUP(H33,ID,Scd,FALSE)-1,IF(AND(N33*12-R33<VLOOKUP(H33,ID,Scd,FALSE),VLOOKUP(H33,ID,Scd,FALSE)>VLOOKUP(Bln,ID,Scd,FALSE)),VLOOKUP(Bln,ID,Scd,FALSE),IF(AND(R33=Bo,I33<Thn),VLOOKUP(Bln,ID,Scd,FALSE)-1,IF(AND(R33=Bn,I33=Thn),VLOOKUP(Bln,ID,Scd,FALSE)-VLOOKUP(H33,ID,Scd,FALSE)+1,VLOOKUP(Bln,ID,Scd,FALSE))))))<Bo,Np+Bo,IF(OR(Thn<I33,H33=Bn,Bln=Bo,Nm<>Nn,Bl<>Bm),No+Bn,IF(N33*12=R33,Bn,IF(AND(N33*12-R33<VLOOKUP(H33,ID,Scd,FALSE),VLOOKUP(H33,ID,Scd,FALSE)<=VLOOKUP(Bln,ID,Scd,FALSE)),VLOOKUP(H33,ID,Scd,FALSE)-1,IF(AND(N33*12-R33<VLOOKUP(H33,ID,Scd,FALSE),VLOOKUP(H33,ID,Scd,FALSE)>VLOOKUP(Bln,ID,Scd,FALSE)),VLOOKUP(Bln,ID,Scd,FALSE),IF(AND(R33=Bo,I33<Thn),VLOOKUP(Bln,ID,Scd,FALSE)-1,IF(AND(R33=Bn,I33=Thn),VLOOKUP(Bln,ID,Scd,FALSE)-VLOOKUP(H33,ID,Scd,FALSE)+1,VLOOKUP(Bln,ID,Scd,FALSE))))))))) -> 0 | U33: =P33*T33 -> 0 | V33: =S33+U33 -> 0 | W33: =L33-V33 -> 0 | X33: =IF(AND(Nm=Nn,Bl=Bm,N33=Bn),Min,IF((N33*Month)-R33-T33=Bo+Bn,Habis,IF(AND(((N33*Month)-R33-T33)>Month,R33=0),ROUNDDOWN(((N33*Month)-R33-T33)/Month,No)&Tahun&Min_&((N33*Month)-R33-T33)-(ROUNDDOWN(((N33*Month)-R33-T33)/Month,Np)*Month)&Bulan,IF(((N33*Month)-R33-T33)>Month,ROUNDDOWN(((N33*Month)-R33-T33)/Month,No)&Tahun&Min_&((N33*Month)-R33-T33)-(ROUNDDOWN(((N33*Month)-R33-T33)/Month,Np)*Month)&Bulan,(N33*Month)-R33-T33&Bulan)))) -> -
B34: =IF(C34=No,Min,COUNTA(C$34:C34)) -> 1 | C34: Mobil Box Fanther | D34: Kendaraan | E34: 1900-01-10 | F34: Februari | G34: 2015 | H34: Maret | I34: 2015 | J34: 3 | K34: 65000000 | L34: 195000000 | N34: 8 | O34: 0.125 | P34: 2031250 | Q34: 2031250 | R34: 10 | S34: 20312500 | T34: 11 | U34: 22343750 | V34: 42656250 | W34: 152343750 | X34: 6 Tahun - 3 Bulan
B35: =IF(C35=No,Min,COUNTA(C$34:C35)) -> 2 | C35: Mobil Daihatsu Zebra | D35: Kendaraan | E35: 1900-01-15 | F35: Februari | G35: 2015 | H35: Maret | I35: 2015 | J35: 1 | K35: 55000000 | L35: 55000000 | N35: 8 | O35: 0.125 | P35: 572916.6667 | Q35: 572916.6667 | R35: 10 | S35: 5729166.667 | T35: 11 | U35: 6302083.333 | V35: 12031250 | W35: 42968750 | X35: 6 Tahun - 3 Bulan
B36: =IF(C36=No,Min,COUNTA(C$34:C36)) -> 3 | C36: Motor Honda Supra | D36: Kendaraan | E36: 1900-01-25 | F36: Maret | G36: 2015 | H36: April | I36: 2015 | J36: 2 | K36: 11500000 | L36: 23000000 | N36: 8 | O36: 0.125 | P36: 239583.3333 | Q36: 239583.3333 | R36: 9 | S36: 2156250 | T36: 11 | U36: 2635416.667 | V36: 4791666.667 | W36: 18208333.33 | X36: 6 Tahun - 4 Bulan
B37: =IF(C37=No,Min,COUNTA(C$34:C37)) -> 4 | C37: Motor Yamaha Zupiter | D37: Kendaraan | E37: 1900-01-20 | F37: April | G37: 2015 | H37: Mei | I37: 2015 | J37: 1 | K37: 12500000 | L37: 12500000 | N37: 8 | O37: 0.125 | P37: 130208.3333 | Q37: 130208.3333 | R37: 8 | S37: 1041666.667 | T37: 11 | U37: 1432291.667 | V37: 2473958.333 | W37: 10026041.67 | X37: 6 Tahun - 5 Bulan
B38: =IF(C38=No,Min,COUNTA(C$34:C38)) -> - | L38: 0 | O38: - | P38: 0 | Q38: 0 | R38: 0 | S38: 0 | T38: 0 | U38: 0 | V38: 0 | W38: 0 | X38: -
B39: =IF(C39=No,Min,COUNTA(C$34:C39)) -> - | L39: 0 | O39: - | P39: 0 | Q39: 0 | R39: 0 | S39: 0 | T39: 0 | U39: 0 | V39: 0 | W39: 0 | X39: -
B40: =IF(C40=No,Min,COUNTA(C$34:C40)) -> - | L40: 0 | O40: - | P40: 0 | Q40: 0 | R40: 0 | S40: 0 | T40: 0 | U40: 0 | V40: 0 | W40: 0 | X40: -
C41: Sub Total | K41: =SUM(K34:K40) -> 144000000 | L41: =SUM(L34:L40) -> 285500000 | P41: =SUM(P34:P40) -> 2973958.333 | Q41: =SUM(Q34:Q40) -> 2973958.333 | S41: =SUM(S34:S40) -> 29239583.33 | U41: =SUM(U34:U40) -> 32713541.67 | V41: =SUM(V34:V40) -> 61953125 | W41: =SUM(W34:W40) -> 223546875 | X41: -
L42: =IF(Nm<>Nn,No,IF(Bl<>Bm,Bn,IF(J42<>Bn,J42*K42+Np,K42+Bo))) -> 0 | O42: =IF(Nm<>Nn,Min,IF(Bl<>Bm,Min,IF(N42<>Bo,(1/N42)+Np,Min))) -> - | P42: =IF(Nm<>Nn,No,IF(OR(Bl<>Bm),Bn,IF(O42=Min,No,((L42-M42-Np-Bo)*(O42/12)+Np+Bo)))) -> 0 | Q42: =IF(AND(Nm=Nn,Bl=Bm),IF(H42<>Bn,IF(Bln<>Bo,IF(N42<>Bn,IF(AND(Thn=I42,VLOOKUP(Bln,ID,Scd,FALSE)>=VLOOKUP(H42,ID,Scd,FALSE)),P42,IF(AND(Thn>I42,(12-VLOOKUP(H42,ID,Scd,FALSE))+((Thn-I42)*12)-(12-VLOOKUP(Bln,ID,Scd,FALSE))<N42*12),P42,No)),Np),Bo),Bn),Bo) -> 0 | R42: =IF(AND(Nm=Nn,Bl=Bm),IF(H42<>Bn,IF((IF(13-VLOOKUP(H42,ID,Scd,FALSE)+(Thn-I42-1)*12<=N42*12,13-Bn-VLOOKUP(H42,ID,Scd,FALSE)+Bo+(Thn-I42-1)*12,IF(AND(13-VLOOKUP(H42,ID,Scd,FALSE)+(Thn-I42-1)*12>N42*12),N42*12,Np)))<Bo,Bn,(IF(13-VLOOKUP(H42,ID,Scd,FALSE)+(Thn-I42-1)*12<=N42*12,13-VLOOKUP(H42,ID,Scd,FALSE)+(Thn-I42-1)*12,IF(13-VLOOKUP(H42,ID,Scd,FALSE)+(Thn-I42-1)*12>N42*12,N42*12,No)))),Np),Bn+Bo) -> 0 | S42: =IF(P42=Min,No,P42*R42) -> 0 | T42: =IF(ISNA(VLOOKUP(H42,ID,Scd,FALSE))=TRUE,No,IF(IF(N42*12=R42,Bn,IF(AND(N42*12-R42<VLOOKUP(H42,ID,Scd,FALSE),VLOOKUP(H42,ID,Scd,FALSE)<=VLOOKUP(Bln,ID,Scd,FALSE)),VLOOKUP(H42,ID,Scd,FALSE)-1,IF(AND(N42*12-R42<VLOOKUP(H42,ID,Scd,FALSE),VLOOKUP(H42,ID,Scd,FALSE)>VLOOKUP(Bln,ID,Scd,FALSE)),VLOOKUP(Bln,ID,Scd,FALSE),IF(AND(R42=Bo,I42<Thn),VLOOKUP(Bln,ID,Scd,FALSE)-1,IF(AND(R42=Bn,I42=Thn),VLOOKUP(Bln,ID,Scd,FALSE)-VLOOKUP(H42,ID,Scd,FALSE)+1,VLOOKUP(Bln,ID,Scd,FALSE))))))<Bo,Np+Bo,IF(OR(Thn<I42,H42=Bn,Bln=Bo,Nm<>Nn,Bl<>Bm),No+Bn,IF(N42*12=R42,Bn,IF(AND(N42*12-R42<VLOOKUP(H42,ID,Scd,FALSE),VLOOKUP(H42,ID,Scd,FALSE)<=VLOOKUP(Bln,ID,Scd,FALSE)),VLOOKUP(H42,ID,Scd,FALSE)-1,IF(AND(N42*12-R42<VLOOKUP(H42,ID,Scd,FALSE),VLOOKUP(H42,ID,Scd,FALSE)>VLOOKUP(Bln,ID,Scd,FALSE)),VLOOKUP(Bln,ID,Scd,FALSE),IF(AND(R42=Bo,I42<Thn),VLOOKUP(Bln,ID,Scd,FALSE)-1,IF(AND(R42=Bn,I42=Thn),VLOOKUP(Bln,ID,Scd,FALSE)-VLOOKUP(H42,ID,Scd,FALSE)+1,VLOOKUP(Bln,ID,Scd,FALSE))))))))) -> 0 | U42: =P42*T42 -> 0 | V42: =S42+U42 -> 0 | W42: =L42-V42 -> 0 | X42: -
B43: =IF(C43=No,Min,COUNTA(C$43:C43)) -> 1 | C43: Meja Kantor | D43: Peralatan Kantor | E43: 1900-01-10 | F43: Januari | G43: 2015 | H43: Januari | I43: 2015 | J43: 10 | K43: 350000 | L43: 3500000 | N43: 4 | O43: 0.25 | P43: 72916.66667 | Q43: 72916.66667 | R43: 12 | S43: 875000 | T43: 11 | U43: 802083.3333 | V43: 1677083.333 | W43: 1822916.667 | X43: 2 Tahun - 1 Bulan
B44: =IF(C44=No,Min,COUNTA(C$43:C44)) -> 2 | C44: Kursi Kantor | D44: Peralatan Kantor | E44: 1900-01-10 | F44: Januari | G44: 2015 | H44: Januari | I44: 2015 | J44: 20 | K44: 125000 | L44: 2500000 | N44: 4 | O44: 0.25 | P44: 52083.33333 | Q44: 52083.33333 | R44: 12 | S44: 625000 | T44: 11 | U44: 572916.6667 | V44: 1197916.667 | W44: 1302083.333 | X44: 2 Tahun - 1 Bulan
B45: =IF(C45=No,Min,COUNTA(C$43:C45)) -> 3 | C45: Komputer Pentium IV | D45: Peralatan Kantor | E45: 1900-01-13 | F45: Januari | G45: 2015 | H45: Januari | I45: 2015 | J45: 5 | K45: 4500000 | L45: 22500000 | N45: 4 | O45: 0.25 | P45: 468750 | Q45: 468750 | R45: 12 | S45: 5625000 | T45: 11 | U45: 5156250 | V45: 10781250 | W45: 11718750 | X45: 2 Tahun - 1 Bulan
B46: =IF(C46=No,Min,COUNTA(C$43:C46)) -> 4 | C46: Komputer Pentium III | D46: Peralatan Kantor | E46: 1900-01-15 | F46: Januari | G46: 2015 | H46: Januari | I46: 2015 | J46: 5 | K46: 3000000 | L46: 15000000 | N46: 4 | O46: 0.25 | P46: 312500 | Q46: 312500 | R46: 12 | S46: 3750000 | T46: 11 | U46: 3437500 | V46: 7187500 | W46: 7812500 | X46: 2 Tahun - 1 Bulan
B47: =IF(C47=No,Min,COUNTA(C$43:C47)) -> 5 | C47: Printer HP 2000 | D47: Peralatan Kantor | E47: 1900-01-20 | F47: Januari | G47: 2015 | H47: Januari | I47: 2015 | J47: 2 | K47: 2500000 | L47: 5000000 | N47: 4 | O47: 0.25 | P47: 104166.6667 | Q47: 104166.6667 | R47: 12 | S47: 1250000 | T47: 11 | U47: 1145833.333 | V47: 2395833.333 | W47: 2604166.667 | X47: 2 Tahun - 1 Bulan
B48: =IF(C48=No,Min,COUNTA(C$43:C48)) -> 6 | C48: Almari Kabinet | D48: Peralatan Kantor | E48: 1900-01-05 | F48: Februari | G48: 2015 | H48: Februari | I48: 2015 | J48: 5 | K48: 1750000 | L48: 8750000 | N48: 4 | O48: 0.25 | P48: 182291.6667 | Q48: 182291.6667 | R48: 11 | S48: 2005208.333 | T48: 11 | U48: 2005208.333 | V48: 4010416.667 | W48: 4739583.333 | X48: 2 Tahun - 2 Bulan
B49: =IF(C49=No,Min,COUNTA(C$43:C49)) -> 7 | C49: Almari Biasa | D49: Peralatan Kantor | E49: 1900-01-10 | F49: Februari | G49: 2015 | H49: Februari | I49: 2015 | J49: 3 | K49: 1500000 | L49: 4500000 | N49: 4 | O49: 0.25 | P49: 93750 | Q49: 93750 | R49: 11 | S49: 1031250 | T49: 11 | U49: 1031250 | V49: 2062500 | W49: 2437500 | X49: 2 Tahun - 2 Bulan
B50: =IF(C50=No,Min,COUNTA(C$43:C50)) -> 8 | C50: Printer Cannon | D50: Peralatan Kantor | E50: 1900-01-25 | F50: Februari | G50: 2015 | H50: Februari | I50: 2015 | J50: 2 | K50: 650000 | L50: 1300000 | N50: 4 | O50: 0.25 | P50: 27083.33333 | Q50: 27083.33333 | R50: 11 | S50: 297916.6667 | T50: 11 | U50: 297916.6667 | V50: 595833.3333 | W50: 704166.6667 | X50: 2 Tahun - 2 Bulan
B51: =IF(C51=No,Min,COUNTA(C$43:C51)) -> 9 | C51: Mesin Fax | D51: Peralatan Kantor | E51: 1900-01-25 | F51: Februari | G51: 2015 | H51: Februari | I51: 2015 | J51: 1 | K51: 1500000 | L51: 1500000 | N51: 4 | O51: 0.25 | P51: 31250 | Q51: 31250 | R51: 11 | S51: 343750 | T51: 11 | U51: 343750 | V51: 687500 | W51: 812500 | X51: 2 Tahun - 2 Bulan
B52: =IF(C52=No,Min,COUNTA(C$43:C52)) -> 10 | C52: Sofa Tamu | D52: Peralatan Kantor | E52: 1900-01-01 | F52: Mei | G52: 2015 | H52: Mei | I52: 2015 | J52: 1 | K52: 1500000 | L52: 1500000 | N52: 4 | O52: 0.25 | P52: 31250 | Q52: 31250 | R52: 8 | S52: 250000 | T52: 11 | U52: 343750 | V52: 593750 | W52: 906250 | X52: 2 Tahun - 5 Bulan
B53: =IF(C53=No,Min,COUNTA(C$43:C53)) -> - | L53: 0 | O53: - | P53: 0 | Q53: 0 | R53: 0 | S53: 0 | T53: 0 | U53: 0 | V53: 0 | W53: 0 | X53: -
B54: =IF(C54=No,Min,COUNTA(C$43:C54)) -> - | L54: 0 | O54: - | P54: 0 | Q54: 0 | R54: 0 | S54: 0 | T54: 0 | U54: 0 | V54: 0 | W54: 0 | X54: -
B55: =IF(C55=No,Min,COUNTA(C$43:C55)) -> - | L55: 0 | O55: - | P55: 0 | Q55: 0 | R55: 0 | S55: 0 | T55: 0 | U55: 0 | V55: 0 | W55: 0 | X55: -
C56: Sub Total | K56: =SUM(K43:K55) -> 17375000 | L56: =SUM(L43:L55) -> 66050000 | P56: =SUM(P43:P55) -> 1376041.667 | Q56: =SUM(Q43:Q55) -> 1376041.667 | S56: =SUM(S43:S55) -> 16053125 | U56: =SUM(U43:U55) -> 15136458.33 | V56: =SUM(V43:V55) -> 31189583.33 | W56: =SUM(W43:W55) -> 34860416.67 | X56: -
C57: Total | K57: =K14+K22+K32+K41+K56 -> 2896375000 | L57: =L14+L22+L32+L41+L56 -> 5671550000 | P57: =P14+P22+P32+P41+P56 -> 30183333.33 | Q57: =Q14+Q22+Q32+Q41+Q56 -> 30183333.33 | S57: =S14+S22+S32+S41+S56 -> 303105208.3 | U57: =U14+U22+U32+U41+U56 -> 332016666.7 | V57: =V14+V22+V32+V41+V56 -> 635121875 | W57: =W14+W22+W32+W41+W56 -> 5036428125 | X57: -

Sheet Ketentuan UU
B2: Penyusutan Kelompok Harta Berwujud
B22: Pengelompokan & Tarif Penyusutan Aktiva Tetap Fiskal
B23: Berdasarkan PERATURAN MENTERI KEUANGAN No. 96/PMK.03/2009
B24: Tentang : JENIS-JENIS HARTA YANG TERMASUK DALAM KELOMPOK HARTA BERWUJUD BUKAN BANGUNAN UNTUK KEPERLUAN PENYUSUTAN
B26: A. Kelompok 1
B27: Tarif Penyusutan : 25 %
B28: Masa Manfaat : 4 Tahun
B29: No. | C29: Jenis Usaha | D29: Jenis Harta
B30: 1 | C30: Semua jenis usaha | D30: a. Mebel dan peralatan dari kayu atau rotan termasuk meja, bangku, kursi, lemari dan sejenisnya yang bukan bagian dari bangunan.
D31: b. Mesin kantor seperti mesin tik, mesin hitung, duplikator, mesin fotokopi, mesin akunting/pembukuan, komputer, printer, scanner dan sejenisnya.
D32: c. Perlengkapan lainnya seperti amplifier, tape/cassette, video recorder, televisi dan sejenisnya.
D33: d. Sepeda motor, sepeda dan becak.
D34: e. Alat perlengkapan khusus (tools) bagi industri/jasa yang bersangkutan.
D35: f. Dies, jigs, dan mould.
D36: g. Alat-alat komunikasi seperti pesawat telepon, faksimile, telepon seluler dan sejenisnya.
B37: 2 | C37: Pertanian, perkebunan, kehutanan, | D37: Alat yang digerakkan bukan dengan mesin seperti cangkul, peternakan, perikanan, garu dan lain-lain.
B38: 3 | C38: Industri makanan dan minuman | D38: Mesin ringan yang dapat dipindah-pindahkan seperti, huller, pemecah kulit, penyosoh, pengering, pallet, dan sejenisnya.
B39: 4 | C39: Transportasi dan Pergudangan | D39: Mobil taksi, bus dan truk yang digunakan sebagai angkutan umum.
B40: 5 | C40: Industri semi konduktor | D40: Falsh memory tester, writer machine, biporar test system, elimination (PE8-1), pose checker.
B41: 6 | C41: Jasa Persewaan Peralatan Tambat Air Dalam | D41: Anchor, Anchor Chains, Polyester Rope, Steel Buoys, Steel Wire Ropes, Mooring Accessoris.
B42: 7 | C42: Jasa telekomunikasi selular | D42: Base Station Controller
B44: B. Kelompok 2
B45: Tarif Penyusutan : 12,5 %
B46: Masa Manfaat : 8 Tahun
B47: No. | C47: Jenis Usaha | D47: Jenis Harta
B48: 1 | C48: Semua jenis usaha | D48: a. Mebel dan peralatan dari logam termasuk meja, bangku, kursi, lemari dan sejenisnya yang bukan merupakan bagian dari bangunan. Alat pengatur udara seperti AC, kipas angin dan sejenisnya.
D49: b. Mobil, bus, truk, speed boat dan sejenisnya.
D50: c. Container dan sejenisnya.
B51: 2 | C51: Pertanian, perkebunan, kehutanan, perikanan | D51: a. Mesin pertanian/perkebunan seperti traktor dan mesin bajak, penggaruk, penanaman, penebar benih dan sejenisnya.
D52: b. Mesin yang mengolah atau menghasilkan atau memproduksi bahan atau barang pertanian, perkebunan, peternakan dan perikanan.
B53: 3 | C53: Industri makanan dan minuman | D53: a. Mesin yang mengolah produk asal binatang, unggas dan perikanan, misalnya pabrik susu, pengalengan ikan .
D54: b. Mesin yang mengolah produk nabati, misalnya mesin minyak kelapa, margarin, penggilingan kopi, kembang gula, mesin pengolah biji-bijian seperti penggilingan beras, gandum, tapioka.
D55: c. Mesin yang menghasilkan/memproduksi minuman dan bahan-bahan minuman segala jenis.
D56: d. Mesin yang menghasilkan/memproduksi bahan-bahan makanan dan makanan segala jenis.
B57: 4 | C57: Industri mesin | D57: Mesin yang menghasilkan/memproduksi mesin ringan (misalnya mesin jahit, pompa air).
B58: 5 | C58: Perkayuan, kehutanan | D58: a. Mesin dan peralatan penebangan kayu.
D59: b. Mesin yang mengolah atau menghasilkan atau memproduksi bahan atau barang kehutanan.
B60: 6 | C60: Konstruksi | D60: Peralatan yang dipergunakan seperti truk berat, dump truck, crane buldozer dan sejenisnya.
B61: 7 | C61: Transportasi dan Pergudangan | D61: a. Truk kerja untuk pengangkutan dan bongkar muat, truk peron, truck ngangkang, dan sejenisnya;
D62: b. Kapal penumpang, kapal barang, kapal khusus dibuat untuk pengangkutan barang tertentu (misalnya gandum, batu - batuan, biji tambang dan sebagainya) termasuk kapal pendingin, kapal tangki, kapal penangkap ikan dan sejenisnya, yang mempunyai berat sampai dengan 100 DWT;
D63: c. Kapal yang dibuat khusus untuk menghela atau mendorong kapal-kapal suar, kapal pemadam kebakaran, kapal keruk, keran terapung dan sejenisnya yang mempunyai berat sampai dengan 100 DWT;
D64: d. Perahu layar pakai atau tanpa motor yang mempunyai berat sampai dengan 250 DWT;
D65: e. Kapal balon.
B66: 8 | C66: Telekomunikasi | D66: a. Perangkat pesawat telepon;
D67: b. Pesawat telegraf termasuk pesawat pengiriman dan penerimaan radio telegraf dan radio telepon.
B68: 9 | C68: Industri semi konduktor | D68: Auto frame loader, automatic logic handler, baking oven, ball shear tester, bipolar test handler (automatic), cleaning machine, coating machine, curing oven, cutting press, dambar cut machine, dicer, die bonder, die shear test, dynamic burn-in system oven, dynamic test handler, eliminator (PGE-01), full automatic handler, full automatic mark, hand maker, individual mark, inserter remover machine, laser marker (FUM A-01), logic test system, marker (mark), memory test system, molding, mounter, MPS automatic, MPS manual, O/S tester manual, pass oven, pose checker, re-form machine, SMD stocker, taping machine, tiebar cut press, trimming/forming machine, wire bonder, wire pull tester.
B69: 10 | C69: Jasa Persewaan Peralatan Tambat Air Dalam | D69: Spoolling Machines, Metocean Data Collector
B70: 11 | C70: Jasa Telekomunikasi Seluler | D70: Mobile Switching Center, Home Location Register, Visitor Location Register. Authentication Centre, Equipment Identity Register, Intelligent Network Service Control Point, intelligent Network Service Managemen Point, Radio Base Station, Transceiver Unit, Terminal SDH/Mini Link, Antena
B72: C. Kelompok 3
B73: Tarif Penyusutan : 6,25 %
B74: Masa Manfaat : 16 Tahun
B75: No. | C75: Jenis Usaha | D75: Jenis Harta
B76: 1 | C76: Pertambangan selain minyak dan gas | D76: Mesin-mesin yang dipakai dalam bidang pertambangan, termasuk mesin-mesin yang mengolah produk pelikan.
B77: 2 | C77: Permintalan, pertenunan dan pencelupan | D77: a. Mesin yang mengolah/menghasilkan produk-produk tekstil (misalnya kain katun, sutra, serat-serat buatan, wol dan bulu hewan lainnya, lena rami, permadani, kain-kain bulu, tule).
D78: b. Mesin untuk yang preparation, bleaching, dyeing, printing, finishing, texturing, packaging dan sejenisnya.
B79: 3 | C79: Perkayuan | D79: a. Mesin yang mengolah/menghasilkan produk-produk kayu, barang-barang dari jerami, rumput dan bahan anyaman lainnya.
D80: b. Mesin dan peralatan penggergajian kayu.
B81: 4 | C81: Industri kimia | D81: a. Mesin peralatan yang mengolah/menghasilkan produk industri kimia dan industri yang ada hubungannya dengan industri kimia (misalnya bahan kimia anorganis, persenyawaan organis dan anorganis dan logam mulia, elemen radio aktif, isotop, bahan kimia organis, produk farmasi, pupuk, obat celup, obat pewarna, cat, pernis, minyak eteris dan resinoida-resinonida wangi-wangian, obat kecantikan dan obat rias, sabun, detergent dan bahan organis pembersih lainnya, zat albumina, perekat, bahan peledak, produk pirotehnik, korek api, alloy piroforis, barang fotografi dan sinematografi.
D82: b. Mesin yang mengolah/menghasilkan produk industri lainnya (misalnya damar tiruan, bahan plastik, ester dan eter dari selulosa, karet sintetis, karet tiruan, kulit samak, jangat dan kulit mentah).
B83: 5 | C83: Industri mesin | D83: Mesin yang menghasilkan/memproduksi mesin menengah dan berat (misalnya mesin mobil, mesin kapal).
B84: 6 | C84: Transportasi dan Pergudangan | D84: a. Kapal penumpang, kapal barang, kapal khusus dibuat untuk pengangkutan barang-barang tertentu (misalnya gandum, batu-batuan, biji tambang dan sejenisnya) termasuk kapal pendingin dan kapal tangki, kapal penangkapan ikan dan sejenisnya, yang mempunyai berat di atas 100 DWT sampai dengan 1.000 DWT.
D85: b. Kapal dibuat khusus untuk mengela atau mendorong kapal, kapal suar, kapal pemadam kebakaran, kapal keruk, keran terapung dan sejenisnya, yang mempunyai berat di atas 100 DWT sampai dengan 1.000 DWT.
D86: c. Dok terapung.
D87: d. Perahu layar pakai atau tanpa motor yang mempunyai berat di atas 250 DWT.
D88: e. Pesawat terbang dan helikopter-helikopter segala jenis.
B89: 7 | C89: Telekomunikasi | D89: Perangkat radio navigasi, radar dan kendali jarak jauh.
B91: D. Kelompok 4
B92: Tarif Penyusutan : 5 %
B93: Masa Manfaat : 20 Tahun
B94: No. | C94: Jenis Usaha | D94: Jenis Harta
B95: 1 | C95: Konstruksi | D95: Mesin berat untuk konstruksi
B96: 2 | C96: Transportasi dan Pergudangan | D96: a. Lokomotif uap dan tender atas rel.
D97: b. Lokomotif listrik atas rel, dijalankan dengan batere atau dengan tenaga listrik dari sumber luar.
D98: c. Lokomotif atas rel lainnya.
D99: d. Kereta, gerbong penumpang dan barang, termasuk kontainer khusus dibuat dan diperlengkapi untuk ditarik dengan satu alat atau beberapa alat pengangkutan.
D100: e. Kapal penumpang, kapal barang, kapal khusus dibuat untuk pengangkutan barang-barang tertentu (misalnya gandum, batu-batuan, biji tambang dan sejenisnya) termasuk kapal pendingin dan kapal tangki, kapal penangkap ikan dan sejenisnya, yang mempunyai berat di atas 1.000 DWT.
D101: f. Kapal dibuat khusus untuk menghela atau mendorong kapal, kapal suar, kapal pemadam kebakaran, kapal keruk, keran-keran terapung dan sebagainya, yang mempunyai berat di atas 1.000 DWT.
D102: g. Dok-dok terapung.

Sheet HD (hidden)
B2: info
B1000: =LEFT(RIGHT(Menu!A11,12),8) -> xclmedia | XY1000: o@xcl
B2000: =IF(AND(COUNTBLANK(Reg!A24:X24)=24,COUNTBLANK(Reg!X1:X24)=24,LEFT(Reg!D6,4)=B2),0,"#") -> 0
B3000: =IF(AND(COUNTBLANK(Menu!A24:AB24)=28,COUNTBLANK(Menu!AB1:AB24)=24,LEFT(Reg!D6,4)=B2),0,"#") -> 0 | XY3000: =IF(AND(COUNTBLANK(Menu!A2:I4)=27,COUNTA(Menu!B5:D10)+COUNTA(Menu!A11:I11)=8),B3000+XY6000,"#") -> 0
B4000: =IF(B1000=B5000,0,"#") -> 0 | XY4000: =B4000 -> 0
B5000: =LEFT(RIGHT(Reg!D6,12),8) -> xclmedia | XY5000: info@xclmedia.com
B6000: =IF(COUNTA(ID!A1:DR500)=51,XY6000+No,"#") -> 0 | XY6000: =IF(NOW()>LARGE(46022,1),"#",0) -> 0
